Cogmind - Beta 14 *** ADVENTURER MODE // 2024.10.20 @ 17:29:58 Player: 7604 Result: Destroyed by as-30314 with Assembled Rifle Performance ------------- Evolutions (0) 0 Regions Visited (2) 400 Robots Destroyed (21) 105 Value Destroyed (531) 531 Prototype IDs (2) 40 Alien Tech Used (0) 0 Bonus (0) 0 TOTAL SCORE: 1076 Bonus ------- None Cogmind --------- Core Integrity 0/250 Matter 177/300 Energy 100/100 System Corruption 0% Temperature Cool (0) Movement Core (200) Ox3 Location -10/Mines Parts ------- > --- POWER (1) -------- (None) > --- PROPULSION (2) --- (None) > --- UTILITY (2) ------ Medium Storage Unit > --- WEAPON (2) ------- (None) > --- INVENTORY (10) --- Ion Engine Aluminum Leg Aluminum Leg Small Storage Unit Large Storage Unit Medium Armor Plating Medium Armor Plating Assault Rifle Grenade Launcher Mini Grenade Launcher Peak State ------------ > --- POWER ------------ Ion Engine > --- PROPULSION ------- Aluminum Leg Aluminum Leg > --- UTILITY ---------- Medium Storage Unit Medium Armor Plating > --- WEAPON ----------- Small Laser Particle Gun > --- INVENTORY -------- Ion Engine Aluminum Leg Small Storage Unit Medium Armor Plating Assault Rifle Light Assault Rifle Grenade Launcher Mini Grenade Launcher [Rating: 10] Favorites ----------- Power Ion Engine Engine Ion Engine Propulsion Aluminum Leg Leg Aluminum Leg Utility Medium Storage Unit Device Seismic Detector Storage Medium Storage Unit Protection Medium Armor Plating Weapon Particle Gun Energy Gun Particle Gun Ballistic Gun Assault Rifle Launcher Mini Grenade Launcher Build | -11 -10 -10 ------- Run | Yrd Mat Min Slots Evolved . | . . . Power . | . . . Propulsion . | . . . Utility . | . . . Weapon . | . . . Parts Attached 23 | 6 13 4 Power 1 | 1 . . Engine 1 | 1 . . Core . | . . . Reactor . | . . . Propulsion 3 | 2 1 . Treads . | . . . Leg 3 | 2 1 . Wheel . | . . . Hover . | . . . Flight . | . . . Utility 5 | 1 4 . Device 1 | . 1 . Storage 2 | 1 1 . Processor . | . . . Hackware . | . . . Protection 2 | . 2 . Artifact . | . . . Weapon 14 | 2 8 4 Energy Gun 7 | 1 4 2 Energy Cannon . | . . . Ballistic Gun 1 | 1 . . Ballistic Cannon . | . . . Launcher 6 | . 4 2 Special Weapon . | . . . Impact Weapon . | . . . Slashing Weapon . | . . . Piercing Weapon . | . . . Special Melee Weapon . | . . . Unidentified Prototypes . | . . . Parts Lost 6 | . . 6 Power 1 | . . 1 Propulsion 2 | . . 2 Utility 1 | . . 1 Weapon 2 | . . 2 Highest Loss Streak 6 | . . 6 To Critical Strikes . | . . . Average Slot Usage (%) 94 | . 96 92 Engine 13 | . 14 13 Leg 27 | . 28 26 Device 9 | . 8 11 Storage 14 | . 14 14 Protection 1 | . 2 . Energy Gun 24 | . 24 23 Ballistic Gun 1 | . 1 . Launcher 1 | . 1 1 Peak Build Rating 10 | 6 10 9 Average Rating 8 | 4 8 8 On Entrance 5 | . 6 9 Naked Turns . | . . . Heaviest Build 26 | 13 26 21 Greatest Support 20 | 20 20 20 Greatest Overweight (x) 3 | . 1 3 Average Overweight (x) . | . . . Largest Inventory Capacity 10 | 8 10 10 Average Capacity 9 | 6 9 10 Most Carried 10 | 2 10 10 Average Carried 8 | 1 8 10 Final Capacity 10 | 8 10 10 Final Carried 10 | 2 10 10 Class Distribution -------------------- 100% | Mutant Dominant Class ---------------- Mutant | -10/Materials Mutant | -10/Mines Resources | -11 -10 -10 ----------- Run | Yrd Mat Min Matter Collected 429 | 223 136 70 Remotely . | . . . Salvage Created 469 | . 434 35 Parts 28 | . 24 4 Haulers Intercepted . | . . . Recyclers Shooed . | . . . Parts Field Recycled . | . . . Retrieved Matter . | . . . Parts Self-Destructed . | . . . Prevented . | . . . Kills | -11 -10 -10 ------- Run | Yrd Mat Min Combat Hostiles Destroyed 20 | . 14 6 Guns 4 | . 3 1 AOE 16 | . 11 5 Classes Destroyed 7 | . 6 1 Worker 1 | . 1 . Builder 1 | . 1 . Recycler 1 | . 1 . Watcher 1 | . 1 . Swarmer 6 | . 3 3 Grunt 11 | . 11 . Assembled 3 | . . 3 Best Kill Streak 11 | . 11 3 Combat Bots Only 8 | . 8 3 Max Kills in Single Turn 2 | . 2 2 Gunslinging . | . . . Exploded 2 | . 2 2 Melee . | . . . Uniques/NPCs Destroyed . | . . . Combat | -11 -10 -10 -------- Run | Yrd Mat Min Hostile Shots Fired 112 | . 61 51 Missed 43 | . 23 20 Damage Taken 857 | . 379 478 Core 251 | . 65 186 Absorbed by Shields . | . . . Ignored by Resistances 249 | . 114 135 Core Remaining (%) 100 | 100 . . Volleys Fired 36 | . 27 9 Largest 2 | . 2 2 Hottest 115 | . 105 115 Shots Fired 50 | . 35 15 Gun 36 | . 24 12 Cannon . | . . . Launcher 14 | . 11 3 Special . | . . . Kinetic 4 | . 4 . Thermal 32 | . 20 12 Explosive 14 | . 11 3 Electromagnetic . | . . . Robot Hit Streak 8 | . 8 2 Robot Miss Streak 3 | . 1 3 Penetration Max . | . . . Secondary Targets . | . . . Shots Hit Robots 28 | . 21 7 Core Hits 39 | . 31 8 Critical Kills . | . . . Critical Parts Destroyed . | . . . Critical Strikes 1 | . . 1 Burn 1 | . . 1 Melee Attacks . | . . . Impact . | . . . Slashing . | . . . Piercing . | . . . Sneak Attacks . | . . . Combat Hostiles . | . . . Follow-up Attacks . | . . . Damage Inflicted 1612 | . 1300 312 Guns 290 | . 218 72 Cannons . | . . . Explosions 1322 | . 1082 240 Melee . | . . . Ramming . | . . . Kinetic 26 | . 26 . Thermal 264 | . 192 72 Explosive 1322 | . 1082 240 Electromagnetic . | . . . Impact . | . . . Slashing . | . . . Piercing . | . . . Highest Corruption . | . . . Average Corruption . | . . . Corruption Purged . | . . . Corruption Blocked . | . . . Overload Shots . | . . . Overflow Damage 13 | . 10 3 Projectiles . | . . . Explosions 13 | . 10 3 Melee . | . . . Knockbacks . | . . . Impact . | . . . Kinetic . | . . . Secondary . | . . . Self-Inflicted Damage 34 | . 26 8 Shots 3 | . 2 1 Rammed . | . . . Targets Rammed . | . . . Kicked . | . . . Crushed . | . . . Highest Temperature 198 | . 198 162 Average Temperature 65 | . 70 54 Received Heat Transfer 258 | . 258 . Siege Activations . | . . . Robots Corrupted . | . . . Combat Hostiles . | . . . Parts Fried . | . . . Impact Corruptions . | . . . Robots Melted . | . . . Combat Hostiles . | . . . Parts Melted 1 | . 1 . Heat Transferred 706 | . 447 259 Parts Sabotaged . | . . . Parts Stolen . | . . . Parts Stripped . | . . . Power Chain Reactions . | . . . Alert | -11 -10 -10 ------- Run | Yrd Mat Min Peak Influence 365 | . 365 214 Initial 89 | . . 89 Average 209 | . 242 188 Maximum Alert Level 1 | . 1 1 Low Security (%) 47 | 100 26 82 Level 1 52 | . 73 17 Level 2 . | . . . Level 3 . | . . . Level 4 . | . . . Level 5 . | . . . High Security . | . . . Max Security . | . . . Squads Dispatched 1 | . 1 . Investigation 1 | . 1 . Extermination . | . . . Reinforcement . | . . . Assault . | . . . Garrison . | . . . Intercept . | . . . Searches Triggered . | . . . Construction Impeded . | . . . Haulers Reinforced . | . . . Active Scanning Responses . | . . . Cargo Convoy Interrupts . | . . . Stealth | -11 -10 -10 --------- Run | Yrd Mat Min Distress Signals 3 | . 3 . Communications Jammed . | . . . Distress Signals . | . . . Times Spotted 31 | . 19 12 Peak Tracking Total 6 | . 5 6 Tactical Retreats 1 | . . 1 Traps | -11 -10 -10 ------- Run | Yrd Mat Min Traps Triggered . | . . . Indirectly . | . . . Trap Hack Attempts . | . . . Triggered . | . . . Disarmed . | . . . Reprogrammed . | . . . Reused . | . . . Traps Extracted . | . . . Installed . | . . . Triggered . | . . . Machines | -11 -10 -10 ---------- Run | Yrd Mat Min Machines Disabled 3 | . 3 . Max in Single Turn 1 | . 1 . Machines Repaired . | . . . Machines Dismantled . | . . . Machines Sabotaged . | . . . Overloaded Fab Kills . | . . . Hacking | -11 -10 -10 --------- Run | Yrd Mat Min Machines Accessed 4 | . 4 . Terminals 4 | . 4 . Fabricators . | . . . Repair Stations . | . . . Recycling Units . | . . . Scanalyzers . | . . . Garrison Access . | . . . Total Hacks 10 | . 10 . Successful 6 | . 6 . Failed 4 | . 4 . Catastrophic 1 | . 1 . Database Lockouts . | . . . Manual 7 | . 7 . Terminals 10 | . 10 . Fabricators . | . . . Repair Stations . | . . . Recycling Units . | . . . Scanalyzers . | . . . Garrison Access . | . . . Terminal Hacks 5 | . 5 . Part Schematic 1 | . 1 . Prototype ID Bank 1 | . 1 . Branch Access Points 1 | . 1 . Terminal Index 1 | . 1 . Locate Traps 1 | . 1 . Fabricator Hacks . | . . . Repair Station Hacks . | . . . Recycling Unit Hacks . | . . . Scanalyzer . | . . . Garrison Access Hacks . | . . . Unauthorized Hacks 1 | . 1 . Terminals 1 | . 1 . Botnet 1 | . 1 . Fabricators . | . . . Repair Stations . | . . . Recycling Units . | . . . Scanalyzers . | . . . Garrison Access . | . . . Data Cores Recovered . | . . . Used . | . . . Hacking Detections 4 | . 4 . Full Trace Events 1 | . 1 . Feedback Events . | . . . Feedback Blocked . | . . . Robot Schematics Acquired . | . . . Robots Built . | . . . Authchips . | . . . Time . | . . . Total Robot Build Rating . | . . . Part Schematics Acquired 1 | . 1 . Parts Built . | . . . Authchips . | . . . Time . | . . . Total Part Build Rating . | . . . Parts Repaired . | . . . Time . | . . . Parts Recycled . | . . . Recycled Matter . | . . . Retrieved Matter . | . . . Retrieved Components . | . . . Parts Scanalyzed . | . . . Part Schematics Acquired . | . . . Parts Damaged . | . . . Bothacking | -11 -10 -10 ------------ Run | Yrd Mat Min Used RIF Installer . | . . . Robots Hacked . | . . . Non-combat . | . . . Combat . | . . . Robot Hacks Applied . | . . . Relay Couplers Released . | . . . Fabnet Peak Effective % . | . . . Robots Rewired . | . . . Allies Hacked . | . . . Hacks Repelled . | . . . Allies | -11 -10 -10 -------- Run | Yrd Mat Min Total Allies . | . . . Largest Group . | . . . Highest-Rated Group . | . . . Highest-Rated Ally . | . . . Total Orders . | . . . Ally Attacks . | . . . Total Damage . | . . . Kills . | . . . Allies Corrupted . | . . . Allies Melted . | . . . Intel | -11 -10 -10 ------- Run | Yrd Mat Min Robot Analysis Total . | . . . Derelict Logs Recovered . | . . . Drone Launches . | . . . Drone Recoveries . | . . . Exploration | -11 -10 -10 ------------- Run | Yrd Mat Min Turns Passed 940 | 71 602 267 Spaces Moved 469 | 51 315 103 Core 6 | 1 . 5 Treads . | . . . Legs 463 | 50 315 98 Wheels . | . . . Hover . | . . . Flight . | . . . Fastest Speed 50 | 50 120 120 Average Speed 161 | 118 162 178 Slowest Speed 200 | 120 190 200 Overloaded Moves . | . . . Propulsion Burnouts . | . . . Robots Hopped . | . . . Cave-ins Triggered . | . . . Exploration Rate (%) 28 | 3 56 25 Regions Visited 2 Branch Regions 1 Pre-discovered Areas . | . . . Known Exits Taken 1 | . 1 . Unknown Exits Taken 1 | 1 . . Scrap Searched 1 | . . 1 Spaces Dug 7 | . 7 . Terrain Destroyed 115 | . 89 26 Melee . | . . . Projectile . | . . . AOE 115 | . 89 26 Terrain Rammed . | . . . Walls Destroyed . | . . . Machines Disabled . | . . . Actions | -11 -10 -10 --------- Run | Yrd Mat Min Total 594 | 58 367 169 Wait 53 | . . 53 Move 467 | 50 314 103 Hop . | . . . Pick Up 7 | 2 5 . Fast Attach 12 | 6 6 . Attach . | . . . Detach 4 | . 4 . Swap 11 | . 7 4 Drop 4 | . 4 . Fire 36 | . 27 9 Melee . | . . . Ram . | . . . Kick . | . . . Crush . | . . . Escape Stasis . | . . . Rewire . | . . . Trap . | . . . Miscellaneous . | . . . Route ------- -11/Scrapyard -10/Materials (discovered 3 exits: [*Mat] / *Min x2) -10/Mines History --------- Turn | Location | Event 17 | -11/Scrapyard | Discovered new exit (range 16) 72 | -11/Scrapyard | Entered Materials 265 | -10/Materials | Destroyed 8 combat bots 344 | -10/Materials | Build established: Mutant 519 | -10/Materials | Discovered new exit (range 15) 638 | -10/Materials | Identified exit to Mines 674 | -10/Materials | Entered Mines 731 | -10/Mines | YI-UF0 nonchalantly dropped a Grenade Launcher on the ground 789 | -10/Mines | Assembled infested the area 909 | -10/Mines | Core integrity fell below 50% 932 | -10/Mines | Core integrity fell below 20% 941 | -10/Mines | Destroyed by as-30314 with Assembled Rifle Last Messages --------------- Rifle. 00742_ Searching scrap... 00742_ Found EM Pulse Gun. 00742_ Found Welding Torch. 00742_ Found 54 Matter. 00743_ Acquired 54 matter. 00789_ ALERT: Infestation in the mines, dispatching Demolisher response squad. 00831_ K-01 Serf collects debris. 00892_ as-21840 destroyed. 00895_ as-84930 destroyed. 00895_ as-17667 destroyed. 00904_ as-10522 suffers critical hit (Burn). 00907_ Seismic Detector destroyed. 00909_ Particle Gun destroyed. 00910_ The unstable cave ceiling collapses. 00913_ Acquired 7 matter. 00925_ Med. Laser destroyed. 00926_ Aluminum Leg destroyed. 00931_ Ion Engine destroyed. Map ----- +----------------------------------------------------+ | ????????????????????????????####### ## | | ????????????????????????????# % | | ????????????????????????????# ] ## = [ | | ????????????????????????????# ## #### = | | ????????????????????????????# ### #####??### | | ????????????????????????????# #?####????????# | | ????????????????????????????# |#?????????????##### | | ????????????????????????????# [##????????????????? | | ??????????????????????#?????# ##???????????????? | | ???????????????????? #??## #???????????????? | | ????????????????? ###! ##??????????????? | | ????????????????? [%= ##?????????????? | | ????????????????# =[= ##????????????? | | ????????????????? ###!% #????????????? | | ????????????????? ???#a ##???????????? | | ?????????????????? ?????#%= ######??????? | | ????????????????? ??????## ##?????? | | ????????????????????????## #?????? | | ???????????????????????## % #?????? | | ??????????????????????## ##?????? | | ??????????????????????# ##??????? | | ??????????????????????# # % ##?????? | | ??????????????????????# a ####### #?????? | | ??????????????????????# aa##?????## #?????? | | ??????????????????????# a#???????## ##????? | | ??????????????????????# @ #????????## #????? | | ??????????????????????## #?????????# ##???? | | ???????????????????????# #????????## ##??? | | ??????????????????????? a #????????## #??? | | ??????????????????????# #????????## #??? | | ??????????????????????## #?????????## ##??? | | ???????????????????????# #???????????####???? | | ???????????????????????# ##??????????????????? | | ???????????????????????# #???????????????????? | | ???????????????????????# #???????????????????? | | ???????????????????????# #???????????????????? | | ???????????????????????# ##???????????????????? | | ???????????????????????# #????????????????????? | | ???????????????????????# ????????????????????? | | ???????????????????????? ????????????????????? | | ???????????????????????? ?????????????????????? | | ?????????????????????????????????????????????????? | | ?????????????????????????????????????????????????? | | ?????????????????????????????????????????????????? | | ?????????????????????????????????????????????????? | | ?????????????????????????????????????????????????? | | ?????????????????????????????????????????????????? | | ?????????????????????????????????????????????????? | | ?????????????????????????????????????????????????? | | ?????????????????????????????????????????????????? | +----------------------------------------------------+ Best States ------------- Heat Dissipation 25 Energy Generation 10 Energy Capacity 250 Matter Stores 263 Matter Capacity 300 Sight Range 16 Terrain Scan Density 10 Armor Coverage 225 Resistance: KI 20 Resistance: TH 20 Resistance: EX 20 Resistance: EM 20 Resistance: I 20 Resistance: S 20 Resistance: P 20 Evasion (%) 55 Offensive Hacking 10 Item Schematics ----------------- Cargo Storage Unit | -10/Materials | Hacked Robot Schematics ------------------ None Fabricated ------------ Nothing Alien Tech Used ----------------- None Achievements -------------- None Challenges ------------ None Game ------ Seed GammaAnalysisShield Manual? 0 Play Time 00:11:16 Cumulative 100.5 hours Start 2024.10.20 @ 17:20:37 End 2024.10.20 @ 17:29:58 Sessions 1 Manual Loads 0 Difficulty Adventurer Special Mode None Game No. 52 Rogue 0 Adventurer 52 Explorer 0 Win Type - Total 4 Types 4/0/0/0/0/0/0/0/0 Lore% 53 Gallery% 58 Achievement% 49 Wizard Run 0 Options --------- Layout 1 ASCII 0 Keyboard 1 Movement Numpad Keybinds 0 Fullscreen 2 Font 24/Tamsyn Map View 50x35 Zoom Use 0% Tactical HUD 1 Map Filters NONE Filters NONE Steam 1 RUN: 90e1765b-6095-4e14-9dba-ea70c56e539f